bitfinex/quotes_ETHUSD_20241217
["timestamp","ask_amount","ask_price","bid_price","bid_amount"]
[1734410543978,6.70265557,4002.2,4001.6,3.0]
[1734410544180,6.70265557,4002.2,4001.7,0.03760881]
[1734410544415,6.70265557,4002.6,4001.8,0.7732]
[1734410544727,4.3666812,4002.9,4001.8,1.07428854]
[1734410546216,4.3666812,4002.9,4001.9,0.03744788]
[1734410546579,4.3666812,4002.9,4001.8,1.07428854]
[1734410546829,4.3666812,4002.9,4001.9,0.03744788]
[1734410547329,5.03694676,4002.9,4001.8,1.07428854]
[1734410547625,4.3666812,4002.9,4001.8,1.07428854]
[1734410548140,4.3666812,4002.9,4002.4,3.0]
[1734410548285,4.3666812,4002.9,4001.8,0.7732]
[1734410548481,4.3666812,4002.9,4002.5,0.03731137]
[1734410548681,4.3666812,4002.9,4001.8,0.7732]
[1734410549329,4.3666812,4002.9,4002.4,3.0]
[1734410549843,4.3666812,4002.9,4002.5,0.03730577]
[1734410549985,6.70265557,4003.0,4001.8,0.7732]
[1734410550185,6.70265557,4003.0,4001.9,0.03738965]
[1734410550390,7.37292113,4003.0,4001.9,0.03738965]
[1734410550713,0.02986123,4002.9,4001.8,0.7732]
[1734410551115,0.02986123,4002.9,4002.4,3.0]
[1734410551292,7.37292113,4003.0,4002.4,3.0]
[1734410551494,0.73729211,4002.9,4002.5,0.03730577]
[1734410551810,0.73729211,4002.9,4001.8,0.7732]
[1734410551997,6.70265557,4003.0,4001.8,0.7732]
[1734410552191,6.70265557,4003.0,4001.9,0.03738965]
[1734410552394,6.70265557,4003.0,4001.8,0.7732]
[1734410552619,0.02986123,4002.9,4001.8,0.7732]
[1734410552794,0.02986123,4002.9,4002.4,3.0]
[1734410553010,2.33597437,4002.6,4002.5,0.03730577]
[1734410553530,2.33597437,4002.6,4001.0,1.56870972]
[1734410553531,2.33597437,4002.6,4001.2,0.7733]
[1734410553736,2.33597437,4001.5,4000.9,0.7733]
[1734410554044,0.23359744,4001.4,4000.9,0.7733]
[1734410554185,2.33597437,4001.5,4001.0,0.03733498]
[1734410554384,2.33597437,4001.1,4001.0,0.03733498]
[1734410554593,2.33597437,4001.1,4000.5,0.7733]
[1734410554896,2.33597437,4001.1,4000.6,0.03728371]
[1734410555284,2.33597437,4001.1,4000.5,0.7733]
[1734410555532,2.33597437,4001.1,4000.7,0.03760078]
[1734410555827,2.33597437,4001.1,4000.8,0.03758679]
[1734410556008,2.33597437,4001.1,4000.5,0.7733]
[1734410556333,4.39654243,4001.0,4000.9,0.0375728]
[1734410556535,4.39654243,4001.0,4000.5,0.12167762]
[1734410556536,6.70265557,4001.0,4000.5,0.12167762]
[1734410556681,6.70265557,4001.0,3999.9,0.7733]
[1734410556682,2.33597437,4000.6,3999.9,0.7733]
[1734410557237,2.33597437,4000.6,4000.0,0.03653779]
[1734410558032,0.02986123,4000.5,4000.0,0.03653779]
[1734410558329,2.33597437,4000.6,3999.9,0.12381122]
[1734410558563,2.33597437,4000.6,4000.2,3.0]
[1734410558842,2.33597437,4000.6,3999.9,0.12381122]
[1734410558843,2.33597437,4000.6,4000.3,0.03679189]
[1734410559139,2.33597437,4000.6,3999.9,0.12381122]
[1734410559482,2.33597437,4000.6,4000.0,0.03683387]
[1734410559852,2.33597437,4000.6,3999.9,0.12381122]
[1734410559984,2.33597437,4000.6,4000.2,3.0]
[1734410560183,2.33597437,4000.6,4000.3,0.03668655]
[1734410560384,2.33597437,4000.6,3999.9,0.12381122]
[1734410564217,3.00623993,4000.6,3999.9,0.12381122]
[1734410564417,2.33597437,4000.6,3999.9,0.12381122]
[1734410564942,4.3666812,4000.9,4000.0,0.8222]
[1734410565096,4.3666812,4000.9,4000.6,0.8222]
[1734410565452,4.3666812,4000.9,4000.7,0.03763651]
[1734410565588,4.3666812,4000.9,4000.6,0.8222]
[1734410565801,4.3666812,4000.9,4000.7,0.03763651]
[1734410566048,2.33597437,4002.3,4000.7,0.38205247]
[1734410566262,4.3666812,4002.4,4001.0,0.8222]
[1734410566421,4.3666812,4002.4,4001.1,0.31942187]
[1734410566764,4.3666812,4002.4,4001.2,0.84718773]
[1734410566904,6.70265557,4002.7,4001.2,1.1666096]
[1734410567105,6.70265557,4002.7,4001.3,0.35665326]
[1734410567505,4.3666812,4002.7,4001.3,0.35665326]
[1734410567961,4.3666812,4003.0,4001.4,0.8222]
[1734410568109,4.60027864,4003.0,4001.4,0.8222]
[1734410568312,4.60027864,4003.0,4001.5,0.03720342]
[1734410568663,4.60027864,4003.0,4001.5,0.35662529]
[1734410569217,4.60027864,4003.0,4001.6,0.8222]
[1734410569441,4.60027864,4003.0,4001.6,0.85933168]
[1734410569855,2.33597437,4002.8,4001.6,0.85933168]
[1734410570006,0.02986123,4002.7,4001.6,0.85933168]
[1734410570729,2.33597437,4002.8,4001.6,0.85933168]
[1734410570934,0.02986123,4002.7,4001.6,0.85933168]
[1734410571335,2.33597437,4002.8,4001.6,0.85933168]
[1734410571932,0.02986123,4002.7,4001.6,0.85933168]
[1734410573031,0.72647265,4002.7,4001.6,0.85933168]
[1734410573230,2.33597437,4002.4,4001.6,0.85933168]
[1734410573870,2.33597437,4002.4,4001.6,0.8222]
[1734410574031,2.33597437,4002.4,4001.7,0.03658096]
[1734410574234,2.33597437,4002.4,4001.6,0.8222]
[1734410574432,2.33597437,4002.4,4001.8,0.03656698]
[1734410574730,4.3666812,4002.6,4002.2,3.0]
[1734410575162,4.3666812,4002.6,4002.3,0.03649707]
[1734410575563,4.3666812,4002.6,4001.8,0.12275273]
[1734410575762,4.3666812,4002.6,4002.4,0.03655832]
[1734410575963,4.3666812,4002.6,4001.8,0.12275273]
[1734410576165,4.3666812,4002.6,4001.8,0.08631273]
[1734410576375,4.84810898,4002.6,4002.2,3.0]
[1734410576781,4.84810898,4002.6,4002.3,0.03571933]
[1734410576940,0.48142778,4002.6,4002.3,0.03571933]
[1734410577139,0.02986123,4002.7,4001.8,0.08631273]
[1734410577339,0.02986123,4002.7,4002.4,0.03567526]
[1734410577585,0.02986123,4002.7,4001.8,0.08631273]
[1734410577892,2.33597437,4002.8,4001.8,0.08631273]
[1734410578188,2.33597437,4002.8,4001.9,0.03571508]
[1734410578342,0.23359744,4002.7,4002.2,3.0]
[1734410578537,0.23359744,4002.7,4001.9,0.03571508]
[1734410578737,0.23359744,4002.7,4002.3,0.03565915]
[1734410578988,0.23359744,4002.7,4001.8,0.08631273]
[1734410579288,0.23359744,4002.7,4001.9,0.03571508]
[1734410579582,2.33597437,4002.8,4002.2,3.0]
[1734410579788,2.33597437,4003.2,4001.9,0.03571508]
[1734410579959,4.3666812,4003.1,4002.3,0.03562405]
[1734410580287,4.3666812,4003.1,4002.4,0.03561007]
[1734410580489,0.67026556,4003.0,4001.8,0.08631273]
[1734410580888,0.02986123,4002.9,4001.8,0.08631273]
[1734410581042,2.33597437,4002.8,4001.8,0.08631273]
[1734410581242,0.02986123,4002.7,4001.8,0.08631273]
[1734410581483,2.33597437,4002.8,4001.8,0.08631273]
[1734410581665,0.30062399,4002.7,4001.8,0.08631273]
[1734410582367,0.30062399,4002.7,4001.8,0.4057346]
[1734410582767,5.03694676,4003.0,4002.4,0.7511]
[1734410582945,5.03694676,4003.0,4002.5,3.0]
[1734410583299,4.3666812,4003.0,4002.5,3.03561171]
[1734410583666,4.3666812,4003.0,4002.5,0.03561171]
[1734410583994,4.3666812,4003.0,4002.4,0.7511]
[1734410585947,4.3666812,4003.5,4002.4,0.7511]
[1734410589063,4.3666812,4003.4,4002.4,0.7511]
[1734410589249,2.33597437,4003.2,4002.4,0.7511]
[1734410590998,0.02986123,4003.1,4002.4,0.7511]
[1734410591149,0.02986123,4003.1,4002.5,3.0]
[1734410591345,2.33597437,4003.2,4002.4,0.7511]
[1734410591596,2.33597437,4003.2,4002.6,0.03505118]
[1734410591799,3.02959967,4003.2,4002.4,0.7511]
[1734410592596,0.02986123,4003.1,4001.9,0.7511]
[1734410594898,3.02959967,4003.2,4001.9,0.7511]
[1734410595058,4.39654243,4003.1,4001.9,0.7511]
[1734410595252,2.33597437,4002.8,4002.1,0.12562224]
[1734410595756,2.33597437,4002.8,4002.5,3.0]
[1734410596300,2.33597437,4002.8,4002.6,0.03396497]
[1734410596654,2.33597437,4002.8,4002.5,3.0]
[1734410596899,3.00623993,4002.8,4002.1,0.12562224]
[1734410597053,3.00623993,4002.8,4002.6,0.03396497]
[1734410597255,0.67026556,4002.8,4002.1,0.12562224]
[1734410597454,0.67026556,4002.8,4002.7,0.03400615]
[1734410597825,0.67026556,4002.8,4002.1,0.44504411]
[1734410598101,2.33597437,4003.2,4002.1,0.44504411]
[1734410598102,4.3666812,4003.0,4002.5,3.0]
[1734410598351,4.3666812,4003.0,4002.2,0.03406101]
[1734410598476,4.3666812,4003.0,4002.6,0.03400509]
[1734410598667,4.3666812,4003.0,4002.1,0.44504411]
[1734410598868,4.3666812,4003.0,4002.7,0.03399111]
[1734410599082,0.67026556,4002.9,4002.1,0.44504411]
[1734410599300,4.3666812,4003.0,4002.1,0.44504411]
[1734410599515,4.3666812,4003.0,4002.2,0.03406101]
[1734410599815,4.3666812,4003.0,4002.3,0.7902]
[1734410600161,4.3666812,4003.0,4002.7,3.0]
[1734410600619,4.3666812,4003.0,4002.8,0.03397713]
[1734410600906,4.60027864,4003.5,4002.9,3.0]
[1734410601109,0.25695718,4003.4,4002.3,0.7902]
[1734410601309,0.25695718,4003.4,4002.9,3.0]
[1734410601478,0.02986123,4003.3,4002.9,3.0]
[1734410601679,0.02986123,4003.3,4003.0,0.0338088]
[1734410601885,0.46534996,4003.2,4002.9,3.0]
[1734410602068,2.80132433,4003.2,4002.3,0.7902]
[1734410602270,2.80132433,4003.2,4003.0,0.03370854]
[1734410602585,2.80132433,4003.2,4002.3,0.7902]
[1734410602780,0.30582815,4003.1,4002.3,0.7902]
[1734410604111,4.67250935,4003.1,4002.7,3.0]
[1734410604469,2.33597437,4002.9,4002.8,0.03373591]
[1734410604730,6.7325168,4002.9,4001.5,0.12533435]
[1734410604870,2.33597437,4002.3,4001.5,0.12706799]
[1734410606621,0.02986123,4002.2,4001.5,0.12706799]
[1734410606772,2.33597437,4002.3,4001.5,0.12706799]
[1734410606974,0.02986123,4002.2,4001.2,0.31942187]
[1734410607313,2.33597437,4001.9,4001.3,0.03324115]
[1734410607470,2.33597437,4001.9,4001.0,0.7902]
[1734410607671,2.33597437,4001.9,4001.1,0.12257708]
[1734410607918,2.33597437,4001.9,4001.1,0.15592143]
[1734410608122,2.33597437,4001.9,4001.1,0.12257708]
[1734410608430,0.67026556,4001.8,4001.1,0.12257708]
[1734410608780,0.67026556,4001.8,4001.2,0.03333037]
[1734410609827,0.67026556,4001.8,4001.5,3.0]
[1734410609988,2.33597437,4001.9,4001.5,3.0]
[1734410610182,2.33597437,4001.9,4001.6,0.03335468]
[1734410610596,2.33597437,4001.9,4001.1,0.12257708]
[1734410610930,2.33597437,4001.9,4001.2,0.03341062]
[1734410613121,6.70265557,4001.9,4001.2,0.03341062]
[1734410616242,4.3666812,4001.9,4001.5,3.0]
[1734410616592,4.3666812,4001.9,4001.6,0.03392136]
[1734410616798,4.3666812,4001.9,4001.7,3.0]
[1734410617239,4.3666812,4001.9,4001.8,0.03389339]
[1734410617454,4.3666812,4001.9,4001.7,3.0]
[1734410617597,4.3666812,4001.9,4001.3,1.10962187]
[1734410618194,4.3666812,4001.9,4001.4,0.0338791]
[1734410618400,4.3666812,4001.9,4001.4,0.47990877]
[1734410618802,2.33597437,4002.7,4001.5,0.7902]
[1734410618995,2.33597437,4002.7,4001.5,1.10962187]
[1734410619348,2.33597437,4002.7,4002.2,3.0]
[1734410619749,2.33597437,4002.7,4002.3,0.03366799]
[1734410619901,0.67026556,4002.6,4002.3,0.03366799]
[1734410620244,0.67026556,4002.6,4001.5,1.10962187]
[1734410620556,2.33597437,4002.7,4001.6,0.0337107]
[1734410624248,0.02986123,4002.6,4001.6,0.0337107]
[1734410625152,2.33597437,4002.7,4001.6,0.0337107]
[1734410625699,0.02986123,4002.6,4001.6,0.0337107]
[1734410625852,0.02986123,4002.6,4002.2,3.0]
[1734410626053,0.67325168,4002.5,4002.3,0.03315141]
[1734410626254,0.67325168,4002.5,4001.5,0.7902]
[1734410626491,0.67325168,4002.5,4002.2,3.0]
[1734410626685,0.67325168,4002.5,4001.6,0.03324929]
[1734410626863,0.67325168,4002.5,4002.3,0.0331815]
[1734410627066,0.30092261,4002.4,4001.5,0.7902]
[1734410627290,0.02986123,4002.6,4001.5,0.7902]
[1734410627459,0.02986123,4002.6,4002.2,3.0]
[1734410627872,0.02986123,4002.6,4002.3,0.0331815]
[1734410628421,2.33597437,4002.7,4001.5,0.7902]
[1734410628609,0.02986123,4002.6,4002.4,0.03316752]
[1734410628775,0.02986123,4002.6,4001.5,0.7902]
[1734410629108,0.02986123,4002.6,4001.6,0.03327937]
[1734410629611,2.33597437,4002.3,4001.6,0.03327937]
[1734410629754,0.02986123,4002.2,4001.6,0.03327937]
[1734410629961,0.23658356,4002.2,4001.6,0.03327937]
[1734410631115,4.39654243,4002.1,4001.2,0.7633]
[1734410631315,4.39654243,4002.1,4001.7,0.03337071]
[1734410631820,4.39654243,4002.1,4001.1,0.44309532]
[1734410631962,0.69691004,4002.0,4001.1,0.44309532]
[1734410632183,0.02986123,4001.9,4001.2,0.03356603]
[1734410632586,0.02986123,4001.9,4001.8,3.0]
[1734410632937,0.69691004,4002.0,4001.8,0.03348211]
[1734410633227,0.69691004,4002.0,4001.1,0.44309532]
[1734410633528,0.69691004,4002.0,4001.2,0.03361619]
[1734410634714,0.69691004,4002.0,4001.2,0.35303806]
[1734410636526,4.3666812,4002.1,4001.8,3.0]
[1734410636821,4.3666812,4002.1,4001.3,1.11662499]
[1734410637135,4.3666812,4002.6,4001.3,1.08272187]
[1734410637295,4.3666812,4002.6,4001.4,0.58699597]
[1734410637632,4.3666812,4002.6,4001.5,0.7633]
[1734410638041,1.07754804,4002.4,4001.6,0.03384611]
[1734410638638,1.07754804,4002.4,4001.8,3.0]
[1734410638929,1.07754804,4002.4,4001.9,0.03380975]
[1734410639305,1.62197096,4002.4,4001.5,0.7633]
[1734410639517,1.62197096,4002.4,4002.0,0.03379577]
[1734410639743,1.62197096,4002.4,4001.5,0.7633]
[1734410640151,0.54442292,4002.4,4001.6,0.03385171]
[1734410640319,0.02986123,4002.6,4001.6,0.03385171]
[1734410640656,2.33485186,4002.7,4001.6,0.03385171]
[1734410641062,4.3666812,4002.9,4001.8,0.812]
[1734410641223,0.67015331,4002.8,4001.8,0.812]
[1734410641419,4.3666812,4003.0,4001.8,0.812]
[1734410641677,4.3666812,4003.0,4002.2,3.0]
[1734410641964,4.3666812,4003.0,4001.9,0.03380975]
[1734410642143,4.3666812,4002.9,4002.3,0.03362843]
[1734410642352,4.3666812,4002.9,4001.8,0.812]
[1734410642871,4.3666812,4002.9,4001.9,0.03357904]
[1734410643513,4.3666812,4002.9,4002.6,3.0]
[1734410643820,4.3666812,4002.9,4002.0,0.03356506]
[1734410644073,4.3666812,4002.9,4001.8,0.93986904]
[1734410644217,4.3666812,4002.9,4001.8,4.65514645]
[1734410644422,4.3666812,4002.9,4002.1,0.03355108]
[1734410644668,4.3666812,4002.9,4001.8,4.65514645]
[1734410644669,4.3666812,4002.9,4001.9,0.03357904]
[1734410644818,4.3666812,4002.9,4002.2,0.0335371]
[1734410645167,2.33485186,4002.7,4001.6,1.04580648]
[1734410645388,0.02986123,4002.6,4002.3,0.03352311]
[1734410645539,0.02986123,4002.6,4001.3,1.17417657]
[1734410645869,0.50666957,4002.6,4001.3,0.12837009]
[1734410646070,4.39654243,4002.5,4001.3,0.12837009]
[1734410646277,2.33485186,4002.3,4001.4,0.03353864]
[1734410646565,2.33485186,4001.9,4001.2,1.583129]
[1734410646863,0.02986123,4001.8,4001.5,0.03319867]
[1734410647080,0.02986123,4001.8,4001.2,1.583129]
[1734410647292,0.23647131,4001.7,4001.6,0.03205735]
[1734410647491,0.23647131,4001.7,4001.2,1.583129]
[1734410647790,0.02986123,4001.6,4001.2,1.583129]
[1734410648396,0.23647131,4001.7,4001.2,1.583129]
[1734410649397,4.3666812,4001.4,4001.2,1.583129]
[1734410655110,4.3666812,4001.3,4001.2,1.583129]
[1734410667692,4.3666812,4001.3,4001.2,1.61706781]
[1734410667898,4.3666812,4001.3,4001.2,2.38856781]
[1734410670206,2.33598193,4001.7,4001.2,2.38856781]
[1734410676114,8.95,4001.6,4001.2,2.38856781]
[1734410684675,2.33598193,4001.3,4001.2,1.61706781]
[1734410685136,8.95,4001.5,4001.3,0.792]
[1734410685766,8.95,4001.5,4001.4,0.03325345]
[1734410688248,8.95,4002.1,4001.4,0.03325345]
[1734410688581,8.95,4002.1,4001.5,0.792]
[1734410688776,8.95,4002.1,4001.6,0.03313015]
[1734410694287,8.95,4002.5,4001.6,0.03313015]
[1734410694994,8.95,4002.5,4001.5,0.792]
[1734410695347,8.95,4002.5,4001.6,0.03263353]
[1734410695988,1.07783969,4001.9,4001.6,0.03263353]
[1734410696743,0.02986123,4001.8,4001.6,0.03263353]
[1734410697068,0.21855406,4001.7,4001.6,0.03263353]
[1734410697274,9.16855406,4001.7,4001.6,0.03263353]
[1734410697469,9.16855406,4001.7,4001.2,1.583129]
[1734410697677,1.07783969,4001.3,4001.2,1.583129]
[1734410698046,8.95,4001.6,4001.2,1.583129]
[1734410699385,10.0786047,4001.6,4001.2,1.583129]
[1734410700251,8.95,4001.6,4001.2,1.583129]
[1734410701851,8.95,4001.6,4001.3,0.7658]
[1734410703276,8.95,4002.2,4001.3,0.7658]
[1734410705724,8.95,4002.2,4001.4,0.7658]
[1734410706219,8.95,4002.6,4001.5,0.7658]
[1734410706374,8.95,4002.6,4001.7,0.7658]
[1734410709672,8.95,4003.1,4001.9,0.7658]
[1734410709891,8.95,4003.1,4002.1,0.7658]
[1734410710090,8.95,4003.6,4002.2,0.7658]
[1734410710289,10.1816725,4003.6,4002.3,0.7658]
[1734410711616,10.1816725,4003.6,4002.4,0.03265621]
[1734410711823,8.95,4003.6,4002.5,0.7658]
[1734410712174,8.95,4003.6,4002.6,0.03273348]
[1734410712500,8.95,4003.6,4002.8,0.7658]
[1734410713761,8.95,4003.6,4002.9,0.03195931]
[1734410714007,8.95,4003.6,4003.0,0.7658]
[1734410715274,8.95,4003.7,4003.0,0.7658]
[1734410715810,8.95,4003.7,4003.0,3.7658]
[1734410715980,8.95,4003.7,4003.2,0.7977]
[1734410721235,8.95,4004.1,4003.2,0.7977]
[1734410726038,2.33604696,4004.8,4002.7,0.7977]
[1734410726039,11.28604696,4003.4,4002.7,0.7977]
[1734410726246,2.33604696,4003.0,4001.7,0.7977]
[1734410726410,1.03067805,4004.6,4001.7,0.7977]
[1734410726411,2.33604696,4002.6,4001.7,0.7977]
[1734410726742,2.33604696,4002.6,4001.8,0.02786869]
[1734410727307,8.95,4002.9,4001.8,0.02786869]
[1734410727527,8.95,4002.9,4001.8,0.32682389]
[1734410727730,8.95,4002.9,4001.8,0.2989552]
[1734410727901,8.95,4002.9,4001.9,0.82346439]
[1734410728302,8.95,4002.9,4001.9,0.7977]
[1734410728732,8.95,4002.9,4002.0,0.0257504]
[1734410728931,10.0786047,4002.9,4002.3,3.0]
[1734410729197,0.02986123,4002.8,4002.4,0.02482237]
[1734410729399,0.02986123,4002.8,4001.9,0.7977]
[1734410729633,1.12871157,4002.8,4002.0,0.0248783]
[1734410729831,2.33604696,4002.6,4002.0,0.0248783]
[1734410730147,8.97986123,4002.5,4002.0,0.0248783]
[1734410730359,0.02986123,4002.4,4002.0,0.0248783]
[1734410730566,0.02986123,4002.4,4001.9,0.92508797]
[1734410730696,8.95,4002.5,4001.9,0.92508797]
[1734410731548,8.95,4002.5,4002.3,3.0]
[1734410731727,8.95,4002.5,4002.4,0.7611]
[1734410731901,8.95,4002.5,4002.4,0.78592237]
[1734410732098,8.95,4002.5,4002.4,0.7611]
[1734410732451,8.95,4002.5,4002.4,0.78592237]
[1734410732597,8.95,4002.5,4002.4,0.7611]
[1734410733299,8.95,4003.3,4002.4,0.78580957]
[1734410733499,9.1836047,4003.3,4002.4,0.78580957]
[1734410733710,9.1836047,4003.3,4002.4,0.7611]
[1734410733917,9.1836047,4003.3,4002.5,3.0]
[1734410734119,9.1836047,4003.3,4002.4,0.7611]
[1734410734324,9.1836047,4003.3,4002.6,0.02468161]
[1734410734618,9.1836047,4003.3,4002.7,0.02466763]
[1734410734949,8.95,4003.3,4002.5,3.0]
[1734410735160,8.95,4003.3,4002.8,0.02465366]
[1734410735322,8.95,4003.3,4002.5,3.0]
[1734410735525,8.95,4003.3,4002.9,0.02463968]
[1734410735734,8.95,4003.3,4002.5,3.0]
[1734410735907,8.95,4003.3,4002.6,0.7611]
[1734410736113,8.95,4003.3,4003.0,3.0]
[1734410736558,8.95,4003.7,4003.2,3.0]
[1734410736723,8.95,4003.7,4003.2,0.7611]
[1734410737061,8.95,4003.7,4003.2,3.7611]
[1734410737241,8.95,4003.7,4003.2,0.7611]
[1734410737446,8.95,4003.7,4003.2,3.7611]
[1734410737818,8.95,4003.7,4003.3,0.02425299]
[1734410738127,8.95,4003.7,4003.2,0.7611]
[1734410738459,2.33604696,4003.8,4003.2,0.7611]
[1734410738763,0.02986123,4003.7,4003.2,0.7611]
[1734410738968,2.56965166,4003.8,4003.3,0.02425299]
[1734410739314,2.56965166,4003.8,4003.3,3.0]
[1734410739514,2.56965166,4003.8,4003.4,0.0241839]
[1734410740256,2.33604696,4003.8,4003.5,0.7611]
[1734410740560,0.02986123,4004.6,4003.5,0.78523987]
[1734410740561,2.33604696,4004.2,4003.5,0.78523987]
[1734410740759,0.2336047,4004.1,4003.5,0.78523987]
[1734410740913,0.2336047,4004.1,4003.5,0.7611]
[1734410741313,8.95,4004.5,4003.5,0.7611]
[1734410741519,2.33604696,4004.8,4003.7,3.0]
[1734410741716,2.33604696,4004.8,4003.5,0.7611]
[1734410741920,2.36590819,4004.8,4003.8,0.02398973]
[1734410742146,2.36590819,4004.8,4003.5,0.7611]
[1734410742425,1.13159082,4004.7,4003.5,0.7611]
[1734410743220,0.02986123,4004.6,4003.5,0.7611]
[1734410743468,2.33604696,4004.4,4003.5,0.7611]
[1734410744366,2.33604696,4004.4,4003.6,0.02372218]
[1734410744722,2.33604696,4004.4,4003.5,0.7611]
[1734410744927,2.33604696,4004.4,4003.5,0.9954438]
[1734410745238,2.33604696,4004.4,4003.6,0.02366959]
[1734410745620,0.02986123,4004.3,4003.6,0.02366959]
[1734410745871,2.33604696,4004.4,4003.6,0.02366959]
[1734410748372,2.33604696,4004.4,4003.7,0.7797]
[1734410748725,2.33604696,4004.4,4003.8,0.02362663]
[1734410749204,0.02986123,4004.3,4003.8,0.02362663]
[1734410749402,3.46465166,4004.4,4003.8,0.02362663]
[1734410749694,3.46465166,4004.4,4003.7,0.7797]
[1734410751259,8.95,4004.3,4003.7,0.7797]
[1734410751888,2.33604696,4004.0,4003.7,0.7797]
[1734410752188,8.95,4003.8,4003.3,0.7797]
[1734410753442,11.28604696,4003.6,4003.4,0.02314657]
[1734410753659,0.02986123,4003.5,4003.2,1.582338]
[1734410754497,11.28604696,4003.6,4003.2,1.582338]
[1734410754661,0.02986123,4003.5,4003.2,1.582338]
[1734410754846,11.28604696,4003.6,4003.2,1.582338]
[1734410755188,1.2316725,4003.5,4003.2,1.582338]
[1734410756689,8.95,4003.3,4003.2,1.582338]
[1734410756890,12.13855381,4003.3,4003.2,0.54246236]
[1734410757071,14.44801151,4003.3,4003.2,0.54246236]
[1734410757271,2.33604696,4002.3,4001.7,0.2989552]
[1734410757594,2.33604696,4002.3,4001.6,0.7797]
[1734410757776,2.33604696,4001.9,4001.7,0.02392073]
[1734410758195,0.02986123,4001.8,4001.4,0.12451875]
[1734410758393,2.33604696,4001.5,4001.0,0.2989552]
[1734410758561,2.33604696,4001.5,4000.8,0.7797]
[1734410758758,2.33604696,4001.5,4000.9,0.7797]
[1734410758962,2.33604696,4001.9,4000.9,0.7797]
[1734410759169,2.33604696,4001.9,4001.0,0.2989552]
[1734410759369,8.95,4002.1,4001.0,0.2989552]
[1734410759370,8.95,4002.1,4001.1,0.7797]
[1734410759609,8.95,4002.1,4001.3,0.7732]
[1734410760136,2.33604696,4001.9,4001.3,1.0721552]
[1734410760272,2.33604696,4001.9,4001.3,0.7732]
[1734410761886,2.33604696,4001.9,4001.6,3.0]
[1734410762890,2.33604696,4001.9,4001.3,0.7732]
[1734410763927,2.33604696,4001.9,4001.6,3.0]
[1734410764425,2.33604696,4001.9,4001.7,0.0251282]
[1734410765081,11.31590819,4001.8,4001.7,0.0251282]
[1734410765289,11.28604696,4001.8,4000.8,0.7547]
[1734410765516,2.33604696,4000.9,4000.3,0.7547]
[1734410765681,0.02986123,4000.8,4000.3,0.7547]
[1734410765914,2.33604696,4000.5,4000.3,0.7547]
[1734410766125,2.33604696,4000.5,4000.4,0.0234238]
[1734410766447,2.33604696,4000.5,4000.3,0.7547]
[1734410767309,2.33604696,4000.5,3999.9,0.7547]
[1734410768394,2.33604696,4000.5,4000.3,3.0]
[1734410768745,2.33604696,4000.5,4000.4,0.02185662]
[1734410769960,2.33604696,4000.5,3999.9,0.7547]
[1734410770246,2.33604696,4000.9,4000.4,0.02185662]
[1734410770440,8.95,4001.2,4000.8,3.0]
[1734410770647,2.33604696,4001.4,4001.0,3.0]
[1734410771031,2.33604696,4001.4,4001.1,0.02313561]
[1734410772285,2.33604696,4001.4,4000.5,0.7547]
[1734410772487,2.33604696,4001.4,4001.2,0.02294034]
[1734410772686,2.33604696,4001.4,4001.1,0.7547]
[1734410772888,0.02596483,4001.8,4001.3,3.02279594]
[1734410773087,0.02596483,4001.8,4001.3,3.0]
[1734410773337,0.02596483,4001.8,4001.4,0.02261145]
[1734410773635,0.02596483,4001.8,4001.4,0.4003426]
[1734410773940,0.02596483,4001.8,4001.7,3.0]
[1734410774103,0.02596483,4001.8,4001.4,0.02261145]
[1734410774104,0.02596483,4001.8,4001.5,0.7547]
[1734410774303,0.02596483,4001.8,4001.7,0.02257089]
[1734410774504,0.02596483,4001.8,4001.7,9.944486]
[1734410774720,0.02596483,4001.8,4001.7,7.528643]
[1734410774920,0.02596483,4001.8,4001.7,7.78855199]
[1734410775123,0.02596483,4001.8,4001.7,7.36006899]
[1734410775426,0.02596483,4001.8,4001.7,6.69613199]
[1734410776440,2.33604696,4003.6,4001.9,0.7752]
[1734410776735,2.33604696,4003.6,4001.8,3.28062187]
[1734410776736,2.33604696,4003.6,4002.1,0.7752]
[1734410777048,8.95,4003.5,4002.1,0.7752]
[1734410777386,2.33604696,4003.6,4002.3,0.7752]
[1734410777592,2.33604696,4003.6,4003.1,0.7752]
[1734410779125,11.28604696,4004.0,4003.1,0.7752]
[1734410779326,12.41582537,4004.0,4003.1,0.7752]
[1734410779642,8.95,4003.9,4003.1,0.7752]
[1734410779838,8.95,4003.9,4003.4,3.0]
[1734410780041,8.95,4003.9,4003.1,0.7752]
[1734410781116,8.95,4003.9,4003.6,0.7752]
[1734410781309,8.95,4003.9,4003.8,3.0]
[1734410781542,8.95,4003.9,4003.6,0.7752]
[1734410782041,8.95,4003.9,4003.8,3.0]
[1734410782540,8.95,4003.9,4003.6,0.7752]
[1734410782957,8.95,4003.9,4003.8,3.0]
[1734410783512,8.95,4003.9,4003.6,0.7752]
[1734410783749,8.95,4003.9,4003.8,3.0]
[1734410784461,8.95,4004.4,4003.8,3.0]
[1734410784988,8.95,4004.4,4003.6,0.7752]
[1734410785160,0.02986123,4004.3,4003.8,3.0]
[1734410785962,0.02986123,4004.3,4003.6,0.7752]
[1734410786166,10.0786047,4004.4,4003.8,3.0]
[1734410786341,10.0786047,4004.4,4003.6,0.7752]
[1734410786745,10.0786047,4004.4,4003.8,3.0]
[1734410787460,8.95,4004.3,4003.6,0.7752]
[1734410787770,8.95,4004.3,4003.8,3.0]
[1734410788352,8.95,4004.3,4003.6,0.7752]
[1734410788518,8.95,4004.3,4003.8,3.0]
[1734410788934,8.95,4004.3,4003.6,0.7752]
[1734410789132,8.95,4004.3,4003.8,3.0]
[1734410789614,8.95,4004.3,4003.6,0.7752]
[1734410790158,8.95,4004.3,4003.8,3.0]
[1734410790860,8.95,4004.3,4003.6,0.7752]
[1734410791260,8.95,4004.3,4003.8,3.0]
[1734410791479,8.95,4004.3,4003.6,0.7752]
[1734410791672,10.19146517,4004.3,4003.8,3.0]
[1734410791905,10.19146517,4004.3,4003.6,0.7752]
[1734410792042,10.19146517,4004.3,4003.8,3.0]
[1734410792687,10.19146517,4004.3,4003.6,0.7752]
[1734410792894,8.95,4004.8,4004.1,3.0]
[1734410793113,8.95,4004.8,4003.6,0.7752]
[1734410793239,8.95,4004.8,4004.1,3.0]